bitfinex-derivatives/quotes_ETHF0:USTF0_20250816
["timestamp","ask_amount","ask_price","bid_price","bid_amount"]
[1755343404164,1.70007661,4414.1,4414.0,22.0068]
[1755343405270,1.7001055,4414.1,4414.0,22.1799]
[1755343407166,1.1911055,4414.1,4414.0,22.31]
[1755343407372,0.7919055,4414.1,4414.0,22.31]
[1755343407664,0.6974,4414.6,4414.0,21.4944]
[1755343407865,0.2504,4414.2,4414.1,1.434]
[1755343409768,0.2995,4414.6,4414.1,1.434]
[1755343409972,3.2078,4414.7,4414.1,1.434]
[1755343409973,0.2995,4414.5,4414.4,0.6184]
[1755343410171,3.6057,4414.7,4414.5,0.6855]
[1755343410371,0.1631,4414.6,4414.5,1.3039]
[1755343410577,1.3596,4414.6,4414.5,22.1759]
[1755343410876,1.5546,4414.6,4414.5,22.1759]
[1755343411870,1.5546,4414.6,4414.5,22.306]
[1755343412071,1.5546,4414.6,4414.5,22.0028]
[1755343412271,1.5546,4414.6,4414.5,22.1759]
[1755343413475,1.1567,4414.6,4414.5,22.1759]
[1755343413668,0.8572,4414.6,4414.5,22.306]
[1755343414779,0.8572,4414.6,4414.5,22.1759]
[1755343415282,1.1567,4414.6,4414.5,22.306]
[1755343415481,1.5546,4414.6,4414.5,22.306]
[1755343416879,1.5546,4414.6,4414.5,22.1759]
[1755343417474,1.5546,4414.6,4414.5,0.2015]
[1755343417680,1.5546,4414.6,4414.5,20.868]
[1755343417879,1.5546,4414.6,4414.5,21.9988]
[1755343418080,1.5546,4414.6,4414.5,22.1719]
[1755343418786,1.676169,4414.6,4414.5,22.1719]
[1755343422689,1.5546,4414.6,4414.5,22.1719]
[1755343424089,1.6761772,4414.6,4414.5,22.1719]
[1755343425391,1.6761793,4414.6,4414.5,22.1719]
[1755343425690,1.5546,4414.6,4414.5,22.1719]
[1755343426090,1.67617999,4414.6,4414.5,22.1719]
[1755343426992,1.5546,4414.6,4414.5,22.1719]
[1755343427392,1.67618194,4414.6,4414.5,22.1719]
[1755343428693,1.5546,4414.6,4414.5,22.1719]
[1755343429093,1.5546,4414.6,4414.5,1.3039]
[1755343429287,1.5546,4414.6,4414.5,22.1669]
[1755343432292,1.5546,4414.6,4413.7,3.2078]
[1755343432293,0.2406,4413.9,4413.7,3.2078]
[1755343432489,0.3598,4413.9,4413.8,20.861]
[1755343432800,1.3158,4413.9,4413.8,20.861]
[1755343433094,1.5564,4413.9,4413.8,20.861]
[1755343434088,1.0039,4413.8,4413.5,40.8]
[1755343434293,1.5564,4413.7,4413.6,20.86]
[1755343434898,1.5564,4413.7,4413.6,21.5602]
[1755343435200,1.5564,4413.7,4413.6,21.7655]
[1755343435588,1.5564,4413.7,4413.6,0.9055]
[1755343435889,1.5564,4413.7,4413.6,21.7655]
[1755343436300,1.5564,4413.7,4413.6,22.0262]
[1755343436493,1.5564,4413.7,4413.6,22.1967]
[1755343437596,0.6298,4414.3,4413.7,0.7002]
[1755343437795,1.5564,4414.3,4414.2,1.1662]
[1755343438099,1.67457015,4414.3,4414.2,22.0252]
[1755343438692,1.67457015,4414.3,4414.2,21.0643]
[1755343438894,1.67457015,4414.3,4414.2,20.859]
[1755343441599,0.35877015,4414.3,4414.2,25.5339]
[1755343441901,0.2406,4414.5,4414.4,0.6365]
[1755343442095,0.2406,4414.5,4414.4,22.3251]
[1755343442294,0.4036,4414.5,4414.4,22.3251]
[1755343442600,0.7155,4414.5,4414.4,22.3251]
[1755343442802,0.4036,4414.5,4414.4,22.3251]
[1755343443298,0.2406,4414.5,4414.4,22.3251]
[1755343446599,3.8376,4415.0,4414.4,21.6249]
[1755343446898,4.7642,4415.0,4414.9,1.3367]
[1755343447201,4.8823125,4415.0,4414.9,22.1917]
[1755343448107,5.09799067,4415.0,4414.9,20.855]
[1755343448699,5.09799067,4415.0,4414.5,40.8]
[1755343448892,0.6147,4414.6,4414.5,41.5002]
[1755343449096,1.6745125,4414.6,4414.5,22.0202]
[1755343451604,1.6745125,4414.6,4414.5,1.1662]
[1755343451798,1.6745125,4414.6,4414.5,22.0182]
[1755343452305,1.6745125,4414.6,4414.5,22.1887]
[1755343453604,0.5217125,4414.6,4414.5,22.1887]
[1755343453800,0.5217125,4414.6,4414.5,22.3191]
[1755343454501,1.2228125,4414.6,4414.5,22.3191]
[1755343455008,1.2228125,4414.6,4414.5,22.1887]
[1755343455303,1.2228125,4414.6,4414.5,1.3367]
[1755343455606,1.2228125,4414.6,4414.5,22.1867]
[1755343456707,1.4777125,4414.6,4414.5,22.1867]
[1755343456909,1.3596,4414.6,4414.5,22.1867]
[1755343458508,0.6585,4414.6,4414.5,22.1867]
[1755343458707,0.52173855,4414.6,4414.5,22.3171]
[1755343459906,0.35873855,4414.6,4414.5,22.3171]
[1755343460409,0.2557,4414.8,4414.5,21.93927]
[1755343460613,1.5409,4415.4,4415.3,0.1729]
[1755343460811,1.87118132,4415.4,4415.3,22.1339]
[1755343461414,1.87118132,4415.4,4415.3,21.2907]
[1755343461607,1.87118132,4415.4,4415.3,21.0501]
[1755343462110,1.87115451,4415.4,4415.3,21.0501]
[1755343462417,1.87115451,4415.4,4415.3,20.847]
[1755343464122,0.1732,4414.4,4414.3,0.304]
[1755343464414,1.5409,4414.4,4414.3,1.2869]
[1755343464606,1.5409,4414.4,4414.3,22.1309]
[1755343465011,1.1787,4414.4,4414.3,22.2613]
[1755343465210,0.4289,4414.4,4414.3,22.2613]
[1755343466212,3.9402,4414.8,4414.7,1.2869]
[1755343466409,3.2078,4414.8,4414.7,22.2603]
[1755343466812,1.2374,4415.3,4415.2,0.6166]
[1755343467008,1.65461826,4415.3,4415.2,21.7626]
[1755343467209,1.86680176,4415.3,4415.2,22.1289]
[1755343467513,0.36941826,4415.3,4415.2,22.1289]
[1755343467714,3.2078,4415.4,4415.2,22.2593]
[1755343467907,0.2557,4415.3,4415.2,21.4586]
[1755343468113,0.2557,4415.3,4415.2,62.2586]
[1755343468310,1.65460477,4415.3,4415.2,62.2586]
[1755343468507,1.65460477,4415.3,4415.2,62.9289]
[1755343468708,1.5409,4415.3,4415.2,22.1289]
[1755343469411,0.2557,4415.8,4415.4,0.45269]
[1755343469623,1.5409,4415.8,4415.7,0.6166]
[1755343469810,1.6545855,4415.8,4415.7,1.2869]
[1755343470009,1.6545855,4415.8,4415.7,1.114]
[1755343470915,1.65455165,4415.8,4415.7,1.2869]
[1755343471114,1.5409,4415.8,4415.7,1.2869]
[1755343471311,1.65454019,4415.8,4415.5,20.841]
[1755343471614,0.6657,4415.7,4415.6,0.6703]
[1755343471816,1.2852,4415.7,4415.6,0.6703]
[1755343472013,1.2852,4415.7,4415.6,1.2869]
[1755343472211,1.5409,4415.7,4415.6,1.2869]
[1755343473415,1.5409,4415.7,4415.5,20.841]
[1755343473612,1.2852,4415.6,4415.5,22.1279]
[1755343473819,1.5409,4415.6,4415.5,22.1279]
[1755343475509,0.2557,4415.8,4415.7,0.6166]
[1755343475823,1.0946,4415.8,4415.7,1.4173]
[1755343477208,0.4289,4415.8,4415.7,1.2869]
[1755343477414,0.4289,4415.8,4415.7,1.4173]
[1755343477910,1.0946,4415.8,4415.7,1.4173]
[1755343478120,0.4289,4415.8,4415.7,1.2869]
[1755343478321,0.4289,4415.8,4415.7,1.4173]
[1755343479216,0.7324,4415.8,4415.7,1.4173]
[1755343480722,1.0946,4415.8,4415.7,1.4173]
[1755343481219,1.5409,4415.8,4415.7,1.2869]
[1755343483018,0.6195,4415.8,4415.6,0.3663]
[1755343483219,1.5409,4415.7,4415.6,0.3663]
[1755343483428,1.5409,4415.0,4414.9,40.8]
[1755343483623,0.6195,4414.1,4414.0,4.4947]
[1755343483818,1.5409,4414.1,4414.0,25.3217]
[1755343484018,1.5409,4414.1,4414.0,66.1217]
[1755343485224,1.5409,4414.1,4414.0,66.2521]
[1755343485723,0.6722,4414.1,4414.0,66.2521]
[1755343486424,0.4289,4414.1,4414.0,66.2521]
[1755343487420,1.5409,4414.1,4414.0,66.1217]
[1755343490123,0.9538,4414.9,4414.1,0.45283]
[1755343490322,0.1619,4414.2,4414.1,1.06553]
[1755343490518,0.4263,4414.2,4414.1,22.02093]
[1755343490722,1.1157,4414.2,4414.1,22.02093]
[1755343490924,1.1157,4414.2,4414.1,22.67613]
[1755343491228,1.5567,4414.2,4414.1,22.54573]
[1755343492927,1.5567,4414.2,4414.1,22.0929]
[1755343494329,1.5567,4414.2,4414.0,44.0078]
[1755343494530,1.5567,4414.2,4414.1,20.825]
[1755343494731,0.6029,4414.2,4414.0,44.0078]
[1755343494926,1.5567,4414.1,4414.0,40.8]
[1755343495121,1.5567,4414.1,4414.0,61.623]
[1755343495326,1.5567,4414.1,4414.0,61.9845]
[1755343495533,1.5567,4414.1,4414.0,62.2782]
[1755343495733,1.5567,4414.1,4414.0,61.623]
[1755343495928,0.8673,4414.1,4414.0,61.9845]
[1755343496233,1.5567,4414.1,4414.0,62.2782]
[1755343496627,1.5567,4414.1,4414.0,40.8]
[1755343496930,1.5567,4414.1,4414.0,61.622]
[1755343497630,1.5567,4414.1,4414.0,62.2772]
[1755343501835,0.8673,4414.1,4414.0,62.2772]
[1755343502034,0.8673,4414.1,4414.0,62.4076]
[1755343502630,1.1604,4414.1,4414.0,62.2772]
[1755343502835,1.5567,4414.1,4414.0,62.2772]
[1755343503227,1.5567,4414.1,4414.0,40.8]
[1755343503535,1.5567,4414.1,4414.0,61.9835]
[1755343503834,1.5567,4414.1,4414.0,62.2772]
[1755343507037,0.8673,4414.1,4414.0,61.622]
[1755343507229,1.5567,4414.1,4414.0,61.622]
[1755343508235,1.5567,4414.1,4414.0,62.2772]
[1755343510638,1.52422184,4414.1,4414.0,62.2772]
[1755343511138,1.52422184,4414.1,4414.0,41.4552]
[1755343511339,1.52422184,4414.1,4414.0,62.2732]
[1755343511837,1.52422184,4414.1,4414.0,61.618]
[1755343512339,1.52422184,4414.1,4414.0,62.2732]
[1755343513533,1.52422184,4414.1,4414.0,41.4552]
[1755343513732,1.52422184,4414.1,4414.0,62.2732]
[1755343514451,1.52422184,4414.1,4414.0,40.8]
[1755343514642,1.52422184,4414.1,4414.0,61.616]
[1755343515036,1.52422184,4414.1,4414.0,20.816]
[1755343515238,1.52422184,4414.1,4414.0,21.9206]
[1755343515544,1.52422184,4414.1,4414.0,22.0839]
[1755343517045,1.52422184,4414.1,4414.0,1.2679]
[1755343517246,1.52422184,4414.1,4414.0,20.815]
[1755343518035,0.5575,4414.0,4413.7,40.8]
[1755343518346,1.5567,4413.8,4413.7,41.4552]
[1755343518546,1.5567,4413.8,4413.7,62.2702]
[1755343518947,1.5567,4413.8,4413.7,41.4552]
[1755343519143,1.5567,4413.8,4413.7,62.2692]
[1755343522451,1.5169,4413.5,4413.4,32.622]
[1755343522651,1.63157814,4413.5,4413.4,53.434]
[1755343522947,1.63157814,4413.5,4413.4,94.8672]
[1755343523449,1.63157814,4413.5,4413.4,54.0672]
[1755343523644,1.63157814,4413.5,4413.4,0.3615]
[1755343523946,1.5169,4412.7,4412.6,4.2773]
[1755343524138,1.5169,4412.7,4412.6,25.2582]
[1755343524342,1.5169,4412.7,4412.6,66.0582]
[1755343524543,1.5169,4412.7,4412.6,66.0572]
[1755343526345,1.5169,4412.7,4412.6,45.2462]
[1755343526544,1.5169,4412.7,4412.6,62.8484]
[1755343526748,1.5169,4412.7,4412.6,42.0384]
[1755343526953,1.5169,4412.7,4412.6,62.8504]
[1755343527250,1.5169,4412.7,4412.6,63.0124]
[1755343528251,1.2296,4412.7,4412.6,42.0384]
[1755343528453,1.5169,4412.7,4412.6,62.8494]
[1755343530349,1.5169,4412.7,4412.6,62.8504]
[1755343534856,1.5169,4412.7,4412.6,61.609]
[1755343535355,1.5169,4412.7,4412.6,20.809]
[1755343535749,1.5169,4412.7,4412.1,0.6332]
[1755343535956,1.5169,4412.7,4412.0,3.2078]
[1755343535957,0.6022,4412.4,4412.3,0.6332]
[1755343536151,1.5169,4412.4,4412.3,21.4422]
[1755343536549,1.5169,4412.4,4412.3,21.1705]
[1755343536751,1.5169,4412.4,4412.3,21.4422]
[1755343537655,1.5169,4412.4,4412.3,21.8785]
[1755343537857,1.5169,4412.4,4412.3,22.0474]
[1755343539359,1.5169,4412.4,4412.3,22.0464]
[1755343540561,0.2464,4412.4,4412.3,22.2094]
[1755343542555,0.4087,4412.4,4412.3,22.2094]
[1755343542755,1.077,4412.4,4412.3,22.2094]
[1755343543662,0.4087,4412.4,4412.3,22.2094]
[1755343543965,1.077,4412.4,4412.3,22.2094]
[1755343544157,0.2464,4412.4,4412.3,22.2094]
[1755343545062,0.8486,4412.4,4412.3,22.0464]
[1755343545255,0.8486,4412.4,4412.3,63.0094]
[1755343545559,0.2464,4412.4,4412.3,63.0094]
[1755343546862,0.696,4412.4,4412.3,63.0094]
[1755343547155,1.5169,4412.4,4412.3,63.0094]
[1755343547361,1.5169,4412.4,4412.3,62.8464]
[1755343548157,1.5169,4412.4,4412.3,42.0384]
[1755343548361,1.5169,4412.4,4412.3,62.8424]
[1755343548861,1.5169,4412.4,4412.3,42.0384]
[1755343549058,1.5169,4412.4,4412.3,62.8414]
[1755343549364,1.5169,4412.4,4412.3,42.0384]
[1755343549565,1.5169,4412.4,4412.3,62.8414]
[1755343549869,1.5169,4412.4,4412.3,42.0384]
[1755343550160,1.5169,4412.4,4412.3,41.7667]
[1755343550364,1.5169,4412.4,4412.3,62.5687]
[1755343550564,1.5169,4412.4,4412.3,41.7667]
[1755343550766,1.5169,4412.4,4412.3,61.602]
[1755343551669,1.5169,4412.4,4412.3,40.8]
[1755343551870,1.5169,4412.4,4412.3,61.601]
[1755343552671,1.5169,4412.4,4412.3,20.801]
[1755343552870,4.83817536,4412.4,4412.3,20.801]
[1755343554068,4.83817536,4412.4,4412.3,22.0834]
[1755343556269,4.83817536,4412.4,4412.3,21.9088]
[1755343556573,0.1674,4411.6,4411.5,0.2882]
[1755343556771,1.5269,4411.6,4411.5,22.0814]
[1755343556968,0.5285,4412.0,4411.5,20.799]
[1755343557173,1.5269,4411.7,4411.6,61.599]
[1755343557567,1.5269,4411.7,4411.6,21.7261]
[1755343557774,1.5269,4411.7,4411.6,22.0814]
[1755343557973,0.2522,4411.7,4411.6,22.2445]
[1755343558372,0.4196,4411.7,4411.6,22.2445]
[1755343558570,0.6959,4411.7,4411.6,22.2445]
[1755343558877,1.5269,4411.7,4411.6,22.2445]
[1755343559376,1.5269,4411.7,4411.6,22.0814]
[1755343560273,0.5285,4411.6,4411.3,40.8]
[1755343560579,4.7347,4411.4,4411.3,40.8]
[1755343560779,4.7347,4411.4,4411.3,20.798]
[1755343561476,4.7347,4411.4,4411.3,22.0804]
[1755343561974,4.7347,4411.4,4411.0,40.8]
[1755343561975,0.4414,4411.1,4409.7,0.3787]
[1755343562271,0.8883,4410.6,4410.5,0.6155]
[1755343562482,0.2522,4410.6,4410.5,0.7786]
[1755343562782,0.2522,4410.6,4410.5,21.9553]
[1755343563078,0.4196,4410.6,4410.5,22.2435]
[1755343564780,0.4196,4410.6,4410.5,1.2824]
[1755343565079,0.2763,4410.9,4410.5,20.797]
[1755343565278,0.4437,4410.9,4410.8,1.2824]
[1755343565475,1.2747,4410.9,4410.8,21.7912]
[1755343565681,1.2747,4410.3,4410.2,40.8]
[1755343565980,1.5269,4410.3,4410.2,41.1787]
[1755343566683,1.5269,4410.3,4410.1,20.90003735]
[1755343566981,1.5269,4410.2,4410.1,20.90003735]
[1755343570483,1.5269,4410.2,4410.1,0.48073735]
[1755343570780,1.5269,4410.2,4410.1,20.90103735]
[1755343573078,0.2522,4410.0,4408.5,3.2078]
[1755343573279,0.861,4409.4,4409.3,0.2602]
[1755343573579,0.1674,4408.9,4408.8,0.5533]
[1755343573778,1.5269,4408.9,4408.8,1.2824]
[1755343573978,1.5269,4408.9,4408.5,3.2078]
[1755343574273,32.644,4411.3,4408.4,21.4399]
[1755343574274,1.2747,4408.5,4408.4,21.4399]
[1755343574477,1.5269,4408.5,4408.4,21.6206]
[1755343574679,1.5269,4408.5,4408.4,22.0834]
[1755343575185,1.5269,4408.5,4408.4,0.9942]
[1755343575386,1.5269,4408.5,4408.4,21.7952]
[1755343576176,0.8883,4408.5,4408.4,21.4165]
[1755343576387,0.8883,4408.5,4408.4,22.3425]
[1755343577187,1.5269,4408.5,4408.2,40.8]
[1755343577387,0.9984,4408.3,4408.2,41.1787]
[1755343577588,1.5269,4408.3,4408.2,41.4669]
[1755343578086,1.5269,4408.3,4408.2,40.8]
[1755343578278,0.2522,4408.2,4408.0,20.8]
[1755343578480,1.1373,4408.1,4408.0,21.0612]
[1755343578788,1.1373,4408.1,4408.0,22.0395]
[1755343578988,1.5208,4408.1,4408.0,22.0395]
[1755343579580,0.5923,4408.4,4408.3,0.6079]
[1755343579783,0.5923,4408.4,4408.3,22.3074]
[1755343580292,3.4481,4408.5,4408.4,1.5044]
[1755343580589,4.0611,4408.5,4408.4,1.5044]
[1755343580791,4.4446,4408.5,4408.4,1.5044]
[1755343581381,4.4446,4408.5,4408.4,22.3094]
[1755343581583,3.657,4408.5,4408.4,22.3094]
[1755343581789,3.2078,4408.5,4408.4,22.3094]
[1755343582186,3.8001,4409.1,4409.0,0.6079]
[1755343582386,4.4446,4409.1,4409.0,22.0445]
[1755343583186,4.6908,4409.1,4409.0,22.0445]
[1755343586289,4.6908,4409.1,4409.0,21.0662]
[1755343586489,4.6908,4409.1,4409.0,22.0445]
[1755343586991,4.6908,4409.1,4409.0,21.0662]
[1755343587187,4.6908,4409.1,4409.0,21.6125]
[1755343587492,4.6908,4409.1,4409.0,22.0445]
[1755343588288,4.6908,4409.1,4409.0,20.805]
[1755343588693,4.6908,4409.1,4409.0,21.4301]
[1755343588887,4.6908,4409.1,4409.0,21.7768]
[1755343589087,4.6908,4409.1,4409.0,22.0445]
[1755343589991,4.6908,4409.1,4409.0,22.3094]
[1755343590895,4.68668462,4409.1,4409.0,22.3094]
[1755343591196,4.68668462,4409.1,4409.0,20.805]
[1755343591389,4.68668462,4409.1,4409.0,21.0662]
[1755343591590,4.68668462,4409.1,4409.0,21.8802]
[1755343591790,4.68668462,4409.1,4409.0,22.0445]
[1755343592395,4.90716264,4409.1,4409.0,22.0445]
[1755343592896,4.90716308,4409.1,4409.0,22.0445]
[1755343593098,4.68668462,4409.1,4409.0,22.0445]
[1755343593389,4.90717382,4409.1,4409.0,22.0445]
[1755343594397,5.02222978,4409.1,4409.0,22.0445]
[1755343594997,4.90717382,4409.1,4409.0,22.0445]
[1755343595199,5.02222568,4409.1,4409.0,22.0445]
[1755343595699,5.02222568,4409.1,4409.0,22.3094]
[1755343596590,5.63471721,4409.1,4409.0,22.0445]
[1755343597498,5.63471721,4409.1,4409.0,22.3094]
[1755343597801,5.38851721,4409.1,4409.0,22.3094]
[1755343598193,5.63471721,4409.1,4409.0,22.3094]
[1755343599101,5.63471721,4409.1,4409.0,22.0445]
[1755343599901,5.63471721,4409.1,4408.6,20.805]
[1755343600195,1.483,4408.4,4408.3,0.6251]
[1755343600400,1.81854106,4408.4,4408.3,21.4301]
[1755343600995,2.43202788,4408.4,4408.3,21.8802]
[1755343601203,2.43202788,4408.4,4408.3,22.0445]
[1755343601404,2.43237076,4408.4,4408.3,22.0445]
[1755343603302,2.43237076,4408.4,4408.3,21.6125]
[1755343603498,2.43237076,4408.4,4408.3,21.0662]
[1755343603698,2.43237076,4408.4,4408.0,0.2677]
[1755343603699,0.2403,4407.6,4406.8,3.2078]
[1755343603892,0.4041,4407.0,4406.9,22.3084]
[1755343604298,1.483,4407.0,4406.9,62.3934]
[1755343604496,1.483,4407.0,4406.9,61.604]
[1755343604701,1.61503735,4407.0,4406.9,61.604]
[1755343604900,1.61503735,4407.0,4406.9,21.2295]
[1755343605204,1.61503735,4407.0,4406.9,22.0435]
[1755343605506,1.23153735,4407.0,4406.9,22.3084]
[1755343606096,1.61503735,4407.0,4406.9,21.6115]
[1755343606307,1.61503735,4407.0,4406.9,21.4291]
[1755343606511,0.98533735,4407.0,4406.9,22.0435]
[1755343606806,1.36883735,4407.0,4406.9,22.0435]
[1755343607106,1.483,4407.0,4406.9,22.0435]
[1755343608705,3.4637,4407.3,4407.0,0.2775]
[1755343608899,0.2677,4407.7,4407.2,1.4741]
[1755343609204,0.2559,4407.5,4407.4,1.4741]
[1755343609408,0.2559,4407.5,4407.4,22.2801]
[1755343611409,0.5236,4407.8,4407.5,0.8836]
[1755343611610,1.60629417,4407.7,4407.6,22.0407]
[1755343612007,0.13169417,4407.7,4407.6,22.2811]
[1755343612307,0.38759417,4407.7,4407.6,22.2811]
[1755343612507,0.56199417,4407.7,4407.6,22.2811]
[1755343612711,0.4303,4407.7,4407.6,22.2811]
[1755343612910,0.82968935,4407.7,4407.6,22.2811]
[1755343613206,1.00048935,4407.7,4407.6,22.2811]
[1755343613506,3.4637,4407.9,4407.8,0.1741]
[1755343613701,3.5953831,4407.9,4407.8,22.2821]
[1755343613908,3.4637,4407.9,4407.8,22.2821]
[1755343614615,0.4303,4407.9,4407.8,22.2821]
[1755343615012,0.698,4407.9,4407.8,22.2821]
[1755343615619,0.4303,4407.9,4407.8,22.2821]
[1755343616814,0.698,4407.9,4407.8,22.2821]
[1755343617010,0.8688,4407.9,4407.8,22.2821]
[1755343618109,0.4303,4407.9,4407.8,22.2821]
[1755343618313,0.2559,4407.9,4407.8,22.2821]
[1755343619116,0.4303,4407.9,4407.8,22.2821]
[1755343619315,0.698,4407.9,4407.8,22.2821]
[1755343620217,0.8688,4407.9,4407.8,22.2821]
[1755343620418,1.2292,4407.9,4407.8,22.2821]
[1755343620918,0.8688,4407.9,4407.8,63.0821]
[1755343621418,0.2677,4408.2,4407.8,62.1985]
[1755343621720,0.6944,4408.1,4408.0,1.4741]
[1755343621916,0.4267,4408.1,4408.0,22.2791]
[1755343622416,0.2559,4408.1,4408.0,22.2791]
[1755343623119,1.1142,4408.1,4408.0,21.3955]
[1755343623318,1.4746,4408.1,4408.0,21.0464]
[1755343623722,1.4746,4408.1,4408.0,21.4121]
[1755343624023,1.4746,4408.1,4408.0,22.0387]
[1755343625522,1.4746,4408.1,4407.8,40.8]
[1755343625819,1.60502803,4408.0,4407.9,20.803]
[1755343626222,1.60503326,4408.0,4407.9,20.803]
[1755343628916,1.4746,4408.0,4407.9,20.803]
[1755343629225,1.60511637,4408.0,4407.9,20.803]
[1755343629624,0.5906,4407.5,4407.4,44.0078]
[1755343629924,1.4746,4407.5,4407.4,64.8108]
[1755343630125,0.2559,4407.5,4407.4,62.4866]
[1755343630627,3.6381,4407.8,4407.7,1.4741]
[1755343630829,3.2078,4408.9,4408.8,0.5905]
[1755343631023,3.2078,4408.9,4408.8,22.2761]
[1755343631024,3.59422302,4408.9,4408.8,22.2761]
[1755343631227,3.76862302,4408.9,4408.8,22.2761]
[1755343631428,4.81292302,4408.9,4408.8,22.2761]
[1755343632332,1.60512302,4408.9,4408.8,22.2761]
[1755343634726,0.73162302,4408.9,4408.8,22.2761]
[1755343634932,0.6011,4408.9,4408.8,22.2761]
[1755343635128,1.4746,4408.9,4408.8,22.2761]
[1755343635726,3.2078,4409.4,4408.8,22.2761]
[1755343635930,1.4746,4409.0,4408.9,1.4741]
[1755343636231,1.60496964,4409.0,4408.9,1.4741]
[1755343636932,1.60496964,4409.0,4408.9,1.2337]
[1755343637730,3.2078,4409.4,4408.9,1.2337]
[1755343637731,3.4755,4409.4,4408.9,1.4741]
[1755343638032,1.60496647,4409.3,4409.2,1.2337]
[1755343638222,1.60496647,4409.3,4409.2,22.0317]
[1755343638732,0.56066647,4409.3,4409.2,22.278]
[1755343639033,0.4303,4409.3,4409.2,22.278]
[1755343639928,0.7093,4409.3,4409.2,22.278]
[1755343640836,1.5095,4409.3,4409.2,22.278]
[1755343641337,1.5095,4409.3,4409.2,22.0317]
[1755343642438,1.5095,4409.3,4409.2,20.798]
[1755343643033,1.5095,4409.3,4409.2,21.1778]
[1755343643940,1.5095,4409.3,4409.2,21.4213]
[1755343644140,1.5095,4409.3,4409.2,21.6908]
[1755343644342,1.5095,4409.3,4409.2,22.0375]
[1755343646737,1.5095,4409.3,4409.2,22.2838]
[1755343647631,3.2078,4409.4,4409.2,22.2838]
[1755343647835,0.2437,4409.3,4409.2,21.3882]
[1755343648238,0.6994,4409.3,4409.2,21.3882]
[1755343648437,0.6994,4409.3,4409.2,22.2838]
[1755343648634,1.0763,4409.3,4409.2,22.2838]
[1755343649036,1.2485,4409.3,4409.2,22.2838]
[1755343649839,1.4996,4409.3,4409.2,22.2838]
[1755343651334,0.2437,4409.3,4409.2,22.2838]
[1755343651941,1.4996,4409.3,4409.2,22.2838]
[1755343656935,3.2078,4409.4,4409.2,22.0375]
[1755343657140,0.2437,4409.3,4409.2,21.3882]
[1755343657339,0.2437,4409.3,4409.2,21.768]
[1755343657741,0.2437,4409.3,4409.2,22.2838]
[1755343658743,1.4996,4410.1,4410.0,0.2435]
[1755343658945,1.63005074,4410.1,4410.0,21.6788]
[1755343659138,1.63005074,4410.1,4410.0,21.8557]
[1755343659338,1.63005074,4410.1,4410.0,22.0255]
[1755343659838,1.63005074,4410.1,4410.0,21.756]
[1755343660038,1.63005074,4410.1,4410.0,22.0255]
[1755343660238,1.63005074,4410.1,4410.0,22.2718]
[1755343660839,4.0125,4410.7,4410.6,0.2435]
[1755343661044,5.05676196,4410.7,4410.6,22.0245]
[1755343661339,4.83792169,4410.7,4410.6,22.0245]
[1755343661939,4.83792169,4410.7,4410.6,21.5852]
[1755343662242,4.83792169,4410.7,4410.6,21.755]
[1755343662544,4.46102169,4410.7,4410.6,22.0245]
[1755343662740,0.97422169,4410.7,4410.6,22.2708]
[1755343662944,0.8437,4410.7,4410.6,22.2708]
[1755343663345,1.1227,4410.7,4410.6,22.2708]
[1755343663742,1.4996,4410.7,4410.6,22.2708]
[1755343665645,1.1227,4410.7,4410.6,22.2708]
[1755343665844,1.4996,4410.7,4410.6,22.2708]
[1755343668341,1.4996,4410.7,4410.6,22.0245]
[1755343669044,0.5942,4410.3,4409.6,3.2078]
[1755343669240,0.6532,4409.6,4408.9,6.4015949]
[1755343669443,1.5127,4409.0,4408.9,4.4624]
[1755343669638,1.5127,4409.0,4408.9,25.2394]
[1755343669848,1.5127,4409.0,4408.9,66.0394]
[1755343670442,1.5127,4409.0,4408.9,64.7848]
[1755343671045,1.1273,4409.0,4408.9,44.0078]
[1755343671246,0.5942,4408.4,4408.3,3.2078]
[1755343671443,1.5127,4408.4,4408.3,23.9838]
[1755343671753,1.5127,4408.4,4408.3,64.7838]
[1755343672047,1.5127,4408.4,4408.3,23.9838]
[1755343672249,1.5127,4408.4,4408.3,20.775]
[1755343676244,1.5127,4408.4,4408.3,22.0296]
[1755343678646,1.1273,4408.4,4408.3,22.0296]
[1755343678853,1.5127,4408.4,4408.3,22.0296]
[1755343680153,0.2653,4408.3,4407.7,3.2078]
[1755343680347,1.5127,4407.8,4407.7,4.4624]
[1755343680549,1.5127,4407.8,4407.7,25.2414]
[1755343680853,1.5127,4407.8,4407.7,25.5063]
[1755343684554,1.1273,4407.8,4407.7,25.5063]
[1755343684754,0.6532,4408.7,4407.9,0.3998]
[1755343684943,1.2474,4408.7,4408.6,0.5872]
[1755343685144,1.2474,4408.7,4408.6,22.0326]
[1755343685555,1.5127,4408.7,4408.6,22.0326]
[1755343691648,1.5127,4408.7,4408.6,21.3652]
[1755343691852,1.5127,4408.7,4408.6,21.1986]
[1755343692050,1.5127,4408.7,4408.6,21.0232]
[1755343695050,0.8595,4408.7,4408.6,21.765]
[1755343695358,1.5127,4408.7,4408.6,22.0326]
[1755343697250,1.64386453,4408.7,4408.6,22.0326]
[1755343698052,1.64386453,4408.7,4408.6,21.0232]
[1755343698653,1.64386453,4408.7,4408.6,21.4108]
[1755343699061,1.64386453,4408.7,4408.6,21.0232]
[1755343699354,1.86217477,4408.7,4408.6,21.0232]
[1755343699759,1.86217477,4408.7,4408.6,21.4108]